bitfinex/quotes_BTCUSD_20250808
["timestamp","ask_amount","ask_price","bid_price","bid_amount"]
[1754678763947,0.5095513,116500.0,116490.0,1e-08]
[1754678764379,0.5135513,116500.0,116490.0,1e-08]
[1754678765218,0.52153841,116500.0,116490.0,1e-08]
[1754678766781,0.53916541,116500.0,116490.0,1e-08]
[1754678769900,0.53916412,116500.0,116490.0,1e-08]
[1754678771875,0.55755655,116500.0,116490.0,1e-08]
[1754678773317,0.76379655,116500.0,116490.0,1e-08]
[1754678778963,0.74540412,116500.0,116490.0,1e-08]
[1754678779439,0.7394183,116500.0,116490.0,1e-08]
[1754678784221,0.64747405,116500.0,116490.0,0.00200001]
[1754678784448,0.64831405,116500.0,116490.0,0.00200001]
[1754678784658,0.61323803,116500.0,116490.0,0.00369001]
[1754678784870,0.60525592,116500.0,116490.0,0.00369001]
[1754678785081,0.62270494,116500.0,116490.0,0.00200001]
[1754678785288,0.64205017,116500.0,116490.0,0.00200001]
[1754678785499,0.65949919,116500.0,116490.0,0.00200001]
[1754678787679,0.45325919,116500.0,116490.0,0.00200001]
[1754678789625,0.55453592,116500.0,116490.0,0.37525859]
[1754678789838,0.68925592,116500.0,116490.0,0.39990859]
[1754678790065,0.68925592,116500.0,116490.0,0.02834001]
[1754678791419,0.68925592,116500.0,116490.0,0.02665001]
[1754678791623,0.77605017,116500.0,116490.0,0.02665001]
[1754678794736,0.64133017,116500.0,116490.0,0.02665001]
[1754678794946,0.43601017,116500.0,116490.0,0.02834001]
[1754678795152,0.43601017,116500.0,116490.0,0.39990859]
[1754678795788,0.39917592,116500.0,116490.0,0.57159714]
[1754678796008,0.39917592,116500.0,116490.0,0.02834001]
[1754678800597,0.39917592,116500.0,116490.0,0.02665001]
[1754678800810,0.40426592,116500.0,116490.0,1e-08]
[1754678804946,0.74426592,116500.0,116490.0,1e-08]
[1754678805118,0.83106017,116500.0,116490.0,1e-08]
[1754678805744,0.84850919,116500.0,116490.0,1e-08]
[1754678810724,0.84373919,116500.0,116490.0,0.00200001]
[1754678810934,0.73949592,116500.0,116490.0,0.00200001]
[1754678811563,0.74268592,116500.0,116490.0,0.00200001]
[1754678811744,0.74466592,116500.0,116490.0,0.00200001]
[1754678812984,0.74466592,116500.0,116490.0,1e-08]
[1754678817305,0.74466592,116500.0,116490.0,0.00205001]
[1754678817507,0.83146017,116500.0,116490.0,0.00205001]
[1754678818335,0.82733017,116500.0,116490.0,0.00205001]
[1754678819989,0.35133017,116500.0,116490.0,0.37361859]
[1754678820200,0.48725017,116500.0,116490.0,0.37361859]
[1754678820397,0.40045592,116500.0,116490.0,0.54699714]
[1754678820620,0.40045592,116500.0,116490.0,0.57121714]
[1754678821657,0.004,116500.0,116490.0,0.94278572]
[1754678821877,0.1398,116500.0,116490.0,0.95044764]
[1754678822083,0.30742103,116510.0,116500.0,0.17167381]
[1754678822276,0.39428314,116510.0,116500.0,0.54698239]
[1754678822895,0.13576,116510.0,116500.0,0.57120239]
[1754678823465,0.13876,116510.0,116500.0,0.57120239]
[1754678824110,0.001,116510.0,116500.0,0.57120239]
[1754678824265,0.13572,116520.0,116510.0,0.17165908]
[1754678824479,0.13572,116520.0,116510.0,0.54696766]
[1754678825697,0.30736435,116520.0,116510.0,0.54696766]
[1754678826136,0.30736435,116520.0,116510.0,0.54796766]
[1754678826340,0.30936435,116520.0,116510.0,0.54796766]
[1754678826578,0.30936435,116520.0,116510.0,0.17470908]
[1754678826753,0.36836908,116520.0,116510.0,0.54627766]
[1754678826951,0.13772,116520.0,116510.0,0.54627766]
[1754678827154,0.30936435,116520.0,116510.0,0.54627766]
[1754678827521,0.31255435,116520.0,116510.0,0.00305]
[1754678827724,0.31453435,116520.0,116510.0,0.00305]
[1754678828142,0.31453435,116520.0,116510.0,0.17470908]
[1754678828345,0.46091819,116520.0,116510.0,0.001]
[1754678833643,0.46091819,116520.0,116510.0,0.17265908]
[1754678834485,0.46091819,116520.0,116510.0,0.001]
[1754678835362,0.46091819,116520.0,116510.0,0.17265908]
[1754678836396,0.40139646,116520.0,116510.0,0.54627766]
[1754678836650,0.39941646,116520.0,116510.0,0.54627766]
[1754678836860,0.39622646,116520.0,116510.0,0.54627766]
[1754678837092,0.22458211,116520.0,116510.0,0.54627766]
[1754678837955,0.13772,116520.0,116510.0,0.54627766]
[1754678839079,0.002,116520.0,116510.0,0.54796766]
[1754678841278,0.002,116520.0,116510.0,0.17470908]
[1754678841693,0.002,116520.0,116510.0,0.54627766]
[1754678841902,0.002,116520.0,116510.0,0.17470908]
[1754678842109,0.002,116520.0,116510.0,0.54627766]
[1754678843814,0.002,116520.0,116510.0,0.57206066]
[1754678844322,0.002,116520.0,116510.0,0.20049208]
[1754678844546,0.002,116520.0,116510.0,0.57206066]
[1754678845150,0.002,116520.0,116510.0,0.20049208]
[1754678845377,0.002,116520.0,116510.0,0.57206066]
[1754678846219,0.002,116520.0,116510.0,0.20049208]
[1754678846430,0.002,116520.0,116510.0,0.57206066]
[1754678846634,0.002,116520.0,116510.0,0.20049208]
[1754678846855,0.002,116520.0,116510.0,0.57206066]
[1754678847859,0.002,116520.0,116510.0,0.20049208]
[1754678848102,0.17364435,116520.0,116510.0,0.57206066]
[1754678848317,0.17864435,116520.0,116510.0,0.17265908]
[1754678848968,0.007,116520.0,116510.0,0.17265908]
[1754678849377,0.17864435,116520.0,116510.0,0.54422766]
[1754678851455,0.007,116520.0,116510.0,0.54422766]
[1754678851660,0.17864435,116520.0,116510.0,0.54422766]
[1754678852586,0.007,116520.0,116510.0,0.54422766]
[1754678853272,0.007,116520.0,116510.0,0.57197066]
[1754678853527,0.17864435,116520.0,116510.0,0.20040208]
[1754678853785,0.17864435,116520.0,116510.0,0.57197066]
[1754678854716,0.007,116520.0,116510.0,0.57197066]
[1754678854913,0.007,116520.0,116510.0,0.20040208]
[1754678855154,0.17864435,116520.0,116510.0,0.57197066]
[1754678855882,0.002,116520.0,116510.0,0.57197066]
[1754678862201,0.002,116520.0,116510.0,0.94522924]
[1754678862409,0.002,116520.0,116510.0,0.96859924]
[1754678862608,0.002,116520.0,116510.0,1.05546135]
[1754678863238,0.002,116520.0,116510.0,1.41291037]
[1754678864278,0.10047093,116530.0,116520.0,0.17164435]
[1754678864427,0.10047093,116530.0,116520.0,1.13820362]
[1754678864630,0.10047093,116530.0,116520.0,1.16326362]
[1754678865284,0.10147093,116530.0,116520.0,1.50426362]
[1754678866017,0.10047093,116530.0,116520.0,1.50326362]
[1754678866545,0.10047093,116530.0,116520.0,1.50726362]
[1754678867251,0.10147093,116530.0,116520.0,1.50826362]
[1754678868585,0.10147093,116530.0,116520.0,1.52571264]
[1754678868788,0.10147093,116530.0,116520.0,1.55148764]
[1754678869211,0.10147093,116530.0,116520.0,1.81728764]
[1754678872940,0.10147093,116530.0,116520.0,1.07415048]
[1754678873141,0.10147093,116530.0,116520.0,1.81728764]
[1754678878952,0.10147093,116530.0,116520.0,1.81559764]
[1754678880515,0.10147093,116530.0,116520.0,1.07246048]
[1754678880731,0.10147093,116530.0,116520.0,1.81559764]
[1754678887848,0.10147093,116530.0,116520.0,0.91449048]
[1754678888084,0.10663093,116530.0,116520.0,1.79150764]
[1754678888469,0.10453093,116530.0,116520.0,1.79150764]
[1754678888702,0.10147093,116530.0,116520.0,1.79150764]
[1754678898764,0.10147093,116530.0,116520.0,1.04837048]
[1754678898970,0.10147093,116530.0,116520.0,1.79150764]
[1754678899173,0.10453093,116530.0,116520.0,1.79150764]
[1754678900342,0.10453093,116530.0,116520.0,1.79178764]
[1754678901959,0.10147093,116530.0,116520.0,1.79178764]
[1754678902161,0.10147093,116530.0,116520.0,1.04865048]
[1754678902415,0.10147093,116530.0,116520.0,1.79178764]
[1754678906726,0.10147093,116530.0,116520.0,2.16272619]
[1754678912130,0.10147093,116530.0,116520.0,1.04865048]
[1754678912335,0.10147093,116530.0,116520.0,2.16272619]
[1754678912546,0.10467093,116530.0,116520.0,2.16272619]
[1754678912979,0.10467093,116530.0,116520.0,2.02856619]
[1754678913187,0.10674093,116530.0,116520.0,2.16244619]
[1754678914929,0.10674093,116530.0,116520.0,1.791103]
[1754678916873,0.10467093,116530.0,116520.0,1.791103]
[1754678917099,0.10147093,116530.0,116520.0,1.791103]
[1754678918197,0.09147093,116530.0,116520.0,1.791103]
[1754678918840,0.09147093,116530.0,116520.0,2.21415926]
[1754678919051,0.09147093,116530.0,116520.0,2.23804926]
[1754678920811,0.09147093,116530.0,116520.0,1.866683]
[1754678922283,0.09147093,116530.0,116520.0,2.23804926]
[1754678923993,0.0032,116550.0,116540.0,0.52906391]
[1754678924233,0.00527,116550.0,116540.0,1.49477006]
[1754678924459,0.00527,116550.0,116540.0,1.49268006]
[1754678924627,0.00527,116550.0,116540.0,1.51845106]
[1754678925376,0.00527,116550.0,116540.0,1.52145106]
[1754678925727,0.00527,116550.0,116540.0,1.78725106]
[1754678925935,0.0032,116550.0,116540.0,1.78934106]
[1754678926204,0.06947762,116580.0,116570.0,0.17157073]
[1754678926411,0.07154762,116580.0,116570.0,0.67681699]
[1754678926818,0.07474762,116580.0,116570.0,0.67681699]
[1754678927024,0.07474762,116580.0,116570.0,0.70258799]
[1754678927613,0.07774762,116580.0,116570.0,0.70358799]
[1754678928070,0.07774762,116580.0,116570.0,0.71130964]
[1754678928693,0.00827,116580.0,116570.0,0.71130964]
[1754678928899,0.01127,116580.0,116570.0,0.71130964]
[1754678936694,0.01127,116580.0,116570.0,0.33994338]
[1754678936846,0.01127,116580.0,116570.0,0.71130964]
[1754678937046,0.18282601,116580.0,116570.0,0.19834173]
[1754678937252,0.18282601,116580.0,116570.0,0.026771]
[1754678937558,0.18282601,116580.0,116570.0,0.160611]
[1754678938353,0.18282601,116580.0,116570.0,0.19834173]
[1754678939221,0.18282601,116580.0,116570.0,0.026771]
[1754678940280,0.23164683,116580.0,116570.0,0.001]
[1754678940462,0.31850894,116580.0,116570.0,0.001]
[1754678940912,0.65850894,116580.0,116570.0,0.001]
[1754678941131,0.69226354,116580.0,116570.0,0.001]
[1754678942171,0.17160017,116550.0,116540.0,0.18033686]
[1754678942371,0.17358017,116550.0,116540.0,0.18033686]
[1754678942614,0.17656017,116550.0,116540.0,0.00872226]
[1754678942867,0.17656017,116550.0,116540.0,0.18033715]
[1754678943307,0.17656017,116550.0,116540.0,0.00014152]
[1754678943713,0.17856017,116550.0,116540.0,0.00014152]
[1754678943913,0.17856017,116550.0,116540.0,0.17175641]
[1754678944325,0.18056017,116550.0,116540.0,0.54412267]
[1754678944528,0.00896,116550.0,116540.0,0.54412267]
[1754678944740,0.004,116550.0,116540.0,0.68004267]
[1754678945403,0.004,116550.0,116540.0,1.05309893]
[1754678945654,0.004,116550.0,116540.0,1.13996104]
[1754678945909,0.004,116550.0,116540.0,1.52099006]
[1754678946578,0.002,116550.0,116540.0,1.78679006]
[1754678946864,0.002,116550.0,116540.0,1.79079006]
[1754678947081,0.00298,116580.0,116570.0,0.17157073]
[1754678947294,0.00496,116580.0,116570.0,0.67677699]
[1754678948372,0.00796,116580.0,116570.0,0.67777699]
[1754678948821,0.00996,116580.0,116570.0,0.67777699]
[1754678953415,0.00996,116580.0,116570.0,0.67989699]
[1754678954430,0.00696,116580.0,116570.0,0.67889699]
[1754678954637,0.00696,116580.0,116570.0,0.70466599]
[1754678954850,0.004,116580.0,116570.0,0.70566599]
[1754678955860,0.002,116580.0,116570.0,0.70635599]
[1754678956713,0.00298,116590.0,116580.0,0.17155601]
[1754678956855,0.00298,116590.0,116580.0,0.54504227]
[1754678957265,0.00496,116590.0,116580.0,0.54504227]
[1754678957925,0.00496,116590.0,116580.0,0.54518379]
[1754678958192,0.00796,116590.0,116580.0,0.54618379]
[1754678959973,0.00796,116590.0,116580.0,0.5541082]
[1754678960198,0.00796,116590.0,116580.0,0.54618379]
[1754678962428,0.00598,116590.0,116580.0,0.54618379]
[1754678962778,0.00598,116590.0,116580.0,0.554109]
[1754678962986,0.00795,116590.0,116580.0,0.554109]
[1754678963975,0.003,116590.0,116580.0,0.554109]
[1754678964976,0.00791,116590.0,116580.0,0.554109]
[1754678969144,0.003,116590.0,116580.0,1.01233737]
[1754678969280,0.003,116590.0,116580.0,1.03810237]
[1754678969962,0.00294,116600.0,116590.0,0.17154129]
[1754678970165,0.00491,116600.0,116590.0,0.67662755]
[1754678970399,0.00491,116600.0,116590.0,0.54290755]
[1754678970923,0.00294,116600.0,116590.0,0.54507755]
[1754678971550,0.00294,116600.0,116590.0,0.54607755]
[1754678971751,0.00294,116600.0,116590.0,0.57184255]
[1754678972164,0.17643658,116600.0,116590.0,0.56967255]
[1754678972577,0.17643658,116600.0,116590.0,0.19830629]
[1754678972981,0.17643658,116600.0,116590.0,0.17254129]
[1754678973986,0.17843658,116600.0,116590.0,0.17354129]
[1754678977046,0.00691,116600.0,116590.0,0.17354129]
[1754678977384,0.17843658,116600.0,116590.0,0.17354129]
[1754678978920,0.00691,116600.0,116590.0,0.17354129]
[1754678979659,0.17843658,116600.0,116590.0,0.17354129]
[1754678979981,0.00691,116600.0,116590.0,0.17354129]
[1754678980497,0.17843658,116600.0,116590.0,0.17354129]
[1754678984075,0.00691,116600.0,116590.0,0.17354129]
[1754678984569,0.00691,116600.0,116590.0,0.54707755]
[1754678985105,0.17843658,116600.0,116590.0,0.53907755]
[1754678985315,0.17843658,116600.0,116590.0,0.53690755]
[1754678986726,0.17843658,116600.0,116590.0,0.16554129]
[1754678988495,0.17843658,116600.0,116590.0,0.53690755]
[1754678988897,0.17843658,116600.0,116590.0,0.16554129]
[1754678989697,0.002,116600.0,116590.0,0.54122181]
[1754678989896,0.002,116600.0,116590.0,0.93584381]
[1754678990169,0.002,116600.0,116590.0,0.56447755]
[1754678991314,0.00314,116630.0,116620.0,0.17149717]
[1754678991501,0.00521,116630.0,116620.0,0.17149717]
[1754678992189,0.00521,116630.0,116620.0,0.17161121]
[1754678992615,0.00521,116630.0,116620.0,0.17175273]
[1754678993457,0.00521,116630.0,116620.0,0.54311899]
[1754678993667,0.00821,116630.0,116620.0,0.17275273]
[1754678993888,0.00921,116630.0,116620.0,0.16463869]
[1754678994331,0.00921,116630.0,116620.0,0.16666869]
[1754678994978,0.00921,116630.0,116620.0,0.16463869]
[1754678997644,0.22082367,116630.0,116620.0,0.00114152]
[1754678999026,0.22082367,116630.0,116620.0,0.17263869]
[1754678999218,0.18866789,116630.0,116620.0,0.16463869]
[1754678999610,0.01718543,116630.0,116620.0,0.16463869]
[1754679000220,0.01718543,116630.0,116620.0,0.53803495]
[1754679000441,0.01217543,116630.0,116620.0,0.53803495]
[1754679000780,0.01217543,116630.0,116620.0,0.16666869]
[1754679000977,0.01519543,116630.0,116620.0,0.16666869]
[1754679001181,0.01726543,116630.0,116620.0,0.16666869]
[1754679001507,0.18874789,116630.0,116620.0,0.30567869]
[1754679001653,0.01726543,116630.0,116620.0,0.30567869]
[1754679002296,0.00929,116630.0,116620.0,0.30567869]
[1754679003799,0.18077246,116630.0,116620.0,0.30567869]
[1754679004005,0.00929,116630.0,116620.0,0.30567869]
[1754679004430,0.00929,116630.0,116620.0,0.30770869]
[1754679004639,0.0042,116630.0,116620.0,0.30770869]
[1754679004830,0.0042,116630.0,116620.0,0.67907495]
[1754679004956,0.0042,116630.0,116620.0,0.30770869]
[1754679006418,0.18077246,116630.0,116620.0,0.29970869]
[1754679006827,0.0042,116630.0,116620.0,0.29970869]
[1754679007787,0.18077246,116630.0,116620.0,0.29970869]
[1754679008472,0.18077246,116630.0,116620.0,0.29767869]
[1754679008915,0.00929,116630.0,116620.0,0.29767869]
[1754679009166,0.18077246,116630.0,116610.0,0.56862536]
[1754679009391,0.17451717,116620.0,116610.0,0.3378664]
[1754679009611,0.00509,116620.0,116610.0,0.3378664]
[1754679009859,0.17658717,116620.0,116610.0,0.3378664]
[1754679010084,0.00509,116620.0,116610.0,0.3378664]
[1754679010541,0.17658717,116620.0,116610.0,0.3388664]
[1754679011001,0.00509,116620.0,116610.0,0.3378664]
[1754679011253,0.00509,116620.0,116610.0,0.3398964]
[1754679011479,0.00302,116620.0,116610.0,0.3398964]
[1754679012483,0.00502,116620.0,116610.0,0.3408964]
[1754679013567,0.00502,116620.0,116610.0,0.3328964]
[1754679013993,0.17858717,116620.0,116610.0,0.0268073]
[1754679014202,0.21361413,116620.0,116610.0,0.1669273]
[1754679014430,0.17858717,116620.0,116610.0,0.1669273]
[1754679014641,0.17858717,116620.0,116610.0,0.1411673]
[1754679014911,0.17858717,116620.0,116610.0,0.31267917]
[1754679015351,0.00709,116620.0,116610.0,0.31267917]
[1754679015603,0.002,116620.0,116610.0,0.68607543]
[1754679016238,0.002,116620.0,116610.0,0.31470917]
[1754679016456,0.002,116620.0,116610.0,0.68607543]
[1754679017491,0.002,116620.0,116610.0,0.31470917]
[1754679017699,0.002,116620.0,116610.0,0.68607543]
[1754679018347,0.002,116620.0,116610.0,0.31470917]
[1754679018562,0.00502,116620.0,116610.0,0.31470917]
[1754679019461,0.17858717,116620.0,116610.0,0.31482917]
[1754679019672,0.21361413,116620.0,116610.0,0.0010473]
[1754679019878,0.17858717,116620.0,116610.0,0.17255917]
[1754679020522,0.17858717,116620.0,116600.0,0.70194385]
[1754679020751,0.17556717,116620.0,116610.0,0.17151187]
[1754679021412,0.17849717,116620.0,116610.0,0.17151187]
[1754679022261,0.17649717,116620.0,116610.0,0.17151187]
[1754679022563,0.17849717,116620.0,116610.0,0.17151187]
[1754679022775,0.17849717,116620.0,116600.0,0.70299118]
[1754679023015,0.17649717,116620.0,116600.0,0.70199118]
[1754679023244,0.17849717,116620.0,116610.0,0.001]
[1754679023472,0.17849717,116620.0,116610.0,0.17251187]
[1754679023702,0.18318658,116630.0,116610.0,0.54490813]
[1754679023892,0.27004869,116630.0,116620.0,0.17149717]
[1754679024105,0.18521658,116630.0,116620.0,0.17149717]
[1754679024920,0.18621658,116630.0,116620.0,0.17149717]
[1754679025334,0.18621658,116630.0,116610.0,0.17151187]
[1754679025550,0.19021658,116630.0,116610.0,0.54387813]
[1754679025971,0.17442717,116620.0,116610.0,0.17251187]
[1754679026176,0.17645717,116620.0,116610.0,0.17151187]
[1754679026379,0.17645717,116620.0,116610.0,0.17354187]
[1754679027159,0.17945717,116620.0,116610.0,0.17454187]
[1754679027371,0.17742717,116620.0,116610.0,0.17454187]
[1754679027581,0.00593,116620.0,116610.0,0.16654187]
[1754679029207,0.17742717,116620.0,116610.0,0.16654187]
[1754679029966,0.17945717,116620.0,116610.0,0.16654187]
[1754679030646,0.17945717,116620.0,116610.0,0.17454187]
[1754679030837,0.17945717,116620.0,116610.0,0.14088]
[1754679032421,0.17945717,116620.0,116610.0,0.31239187]
[1754679032639,0.17945717,116620.0,116610.0,0.14088]
[1754679032990,0.17945717,116620.0,116610.0,0.14064]
[1754679033191,0.21542855,116620.0,116610.0,0.14064]
[1754679033850,0.35502855,116620.0,116610.0,0.001]
[1754679034213,0.31905717,116620.0,116610.0,0.17251187]
[1754679034702,0.31905717,116620.0,116610.0,0.001]
[1754679035539,0.17151187,116610.0,116600.0,0.30579724]
[1754679035747,0.17647187,116610.0,116600.0,0.30579724]
[1754679036362,0.00496,116610.0,116600.0,0.30579724]
[1754679036567,0.17647187,116610.0,116600.0,0.30579724]
[1754679036781,0.17847187,116610.0,116600.0,0.6801635]
[1754679037116,0.00696,116610.0,116600.0,0.6801635]
[1754679037320,0.17847187,116610.0,116600.0,0.6801635]
[1754679037726,0.00696,116610.0,116600.0,0.6801635]
[1754679037919,0.17847187,116610.0,116600.0,0.30879724]
[1754679038148,0.17847187,116610.0,116600.0,0.6801635]
[1754679039003,0.17847187,116610.0,116600.0,0.30879724]
[1754679039606,0.00696,116610.0,116600.0,0.30879724]
[1754679039820,0.00696,116610.0,116600.0,0.30867724]
[1754679040038,0.17847187,116610.0,116600.0,0.00304733]
[1754679040243,0.2234084,116610.0,116600.0,0.14252733]
[1754679040445,0.17847187,116610.0,116600.0,0.14252733]
[1754679040861,0.26533398,116610.0,116600.0,0.00304733]
[1754679041564,0.26533398,116610.0,116600.0,0.00104733]
[1754679041731,0.26333398,116610.0,116600.0,4.733e-05]
[1754679041936,0.27230279,116610.0,116600.0,4.733e-05]
[1754679042141,0.33464279,116610.0,116600.0,0.00104733]
[1754679042374,0.33464279,116610.0,116600.0,0.001]
[1754679042586,0.17154129,116590.0,116580.0,0.18013381]
[1754679042790,0.17357129,116590.0,116580.0,0.31142118]
[1754679042997,0.17650129,116590.0,116580.0,0.31142118]
[1754679043412,0.19628553,116590.0,116580.0,0.31142118]
[1754679043834,0.17650129,116590.0,116580.0,0.31142118]
[1754679044037,0.00496,116590.0,116580.0,0.31342118]
[1754679044242,0.00496,116590.0,116580.0,0.68478744]
[1754679044458,0.17650129,116590.0,116580.0,0.31342118]
[1754679044664,0.17650129,116590.0,116580.0,0.68478744]
[1754679044881,0.17650129,116590.0,116580.0,0.31342118]
[1754679046101,0.22602334,116590.0,116580.0,0.00204737]
[1754679046318,0.22602334,116590.0,116580.0,0.14108737]
[1754679046673,0.22602334,116590.0,116580.0,0.00204737]
[1754679046870,0.31288545,116590.0,116580.0,0.00204737]
[1754679047877,0.2633634,116590.0,116580.0,0.17360338]
[1754679048055,0.2633634,116590.0,116580.0,0.54496964]
[1754679048255,0.2653634,116590.0,116580.0,0.54296964]
[1754679048678,0.2633634,116590.0,116580.0,0.17160338]
[1754679048884,0.2633634,116590.0,116580.0,0.54296964]
[1754679049090,0.2663634,116590.0,116580.0,0.37141363]
[1754679049316,0.2663634,116590.0,116580.0,0.54296964]
[1754679050051,0.2663634,116590.0,116580.0,0.53496964]
[1754679050654,0.2663634,116590.0,116580.0,0.53699964]
[1754679050655,0.17950129,116590.0,116580.0,0.53699964]
[1754679051341,0.17950129,116590.0,116580.0,0.17358601]
[1754679051560,0.17950129,116590.0,116580.0,0.54495227]
[1754679051963,0.17950129,116590.0,116580.0,0.17155601]
[1754679056837,0.17950129,116590.0,116580.0,0.54292227]
[1754679057076,0.17950129,116590.0,116580.0,0.53492227]
[1754679059237,0.17950129,116590.0,116580.0,0.16355601]
[1754679059450,0.17950129,116590.0,116580.0,0.53492227]
[1754679060234,0.17950129,116590.0,116580.0,0.16355601]
[1754679060499,0.17950129,116590.0,116580.0,0.53492227]
[1754679061903,0.17950129,116590.0,116580.0,0.16355601]
[1754679063058,0.17950129,116590.0,116580.0,0.16570601]
[1754679063290,0.17454129,116590.0,116580.0,0.16570601]
[1754679063520,0.17454129,116590.0,116580.0,0.53707227]
[1754679063765,0.17953129,116590.0,116580.0,0.53707227]
[1754679064232,0.00596,116590.0,116580.0,0.52907227]
[1754679064647,0.17750129,116590.0,116580.0,0.52907227]
[1754679065092,0.17953129,116590.0,116580.0,0.52907227]
[1754679065306,0.17953129,116590.0,116580.0,0.15770601]
[1754679067334,0.17953129,116590.0,116580.0,0.52907227]
[1754679067543,0.00799,116590.0,116580.0,0.52907227]
[1754679067980,0.003,116590.0,116580.0,0.90043853]
[1754679068155,0.003,116590.0,116580.0,0.90212853]
[1754679068778,0.003,116590.0,116580.0,0.53076227]
[1754679069621,0.003,116590.0,116580.0,0.15770601]
[1754679070016,0.003,116590.0,116580.0,0.52907227]
[1754679070234,0.003,116590.0,116580.0,0.90212853]
[1754679070643,0.17454129,116590.0,116580.0,0.52907227]
[1754679071059,0.17953129,116590.0,116580.0,0.17370601]
[1754679071267,0.17953129,116590.0,116570.0,0.57728452]
[1754679071478,0.17657129,116590.0,116580.0,0.30915601]
[1754679072093,0.17953129,116590.0,116580.0,0.30915601]
[1754679072303,0.17653129,116590.0,116580.0,0.30915601]
[1754679072512,0.17853129,116590.0,116580.0,0.68052227]
[1754679073151,0.17653129,116590.0,116580.0,0.68052227]
[1754679073571,0.17853129,116590.0,116580.0,0.68052227]
[1754679073780,0.00699,116590.0,116580.0,0.68052227]
[1754679074824,0.00496,116590.0,116580.0,0.68052227]
[1754679075034,0.002,116590.0,116580.0,0.30915601]
[1754679075653,0.002,116590.0,116580.0,0.68052227]
[1754679078391,0.002,116590.0,116580.0,0.67252227]
[1754679079227,0.17354129,116590.0,116580.0,0.67252227]
[1754679079394,0.17650129,116590.0,116580.0,0.67252227]
[1754679079608,0.00496,116590.0,116580.0,0.67252227]
[1754679080596,0.17650129,116590.0,116580.0,0.67252227]
[1754679081399,0.002,116590.0,116580.0,0.67252227]
[1754679082076,0.00507,116590.0,116580.0,0.67252227]
[1754679082654,0.17859129,116590.0,116580.0,0.67252227]
[1754679084313,0.00705,116590.0,116580.0,0.67252227]
[1754679084956,0.17859129,116590.0,116580.0,0.67252227]
[1754679085403,0.17859129,116590.0,116580.0,0.66452227]
[1754679085623,0.17859129,116590.0,116580.0,0.29315601]
[1754679085827,0.17859129,116590.0,116580.0,0.66452227]
[1754679086449,0.00705,116590.0,116580.0,0.66452227]
[1754679087086,0.00507,116590.0,116580.0,0.66452227]
[1754679087971,0.00507,116590.0,116580.0,0.29315601]
[1754679088166,0.00507,116590.0,116580.0,0.66452227]
[1754679089018,0.17859129,116590.0,116580.0,0.29315601]
[1754679089471,0.17859129,116590.0,116580.0,0.66452227]
[1754679089918,0.00705,116590.0,116580.0,0.66376227]
[1754679090613,0.00507,116590.0,116580.0,0.66376227]
[1754679091094,0.00507,116590.0,116580.0,0.52692227]
[1754679091343,0.002,116590.0,116580.0,1.03508853]
[1754679092062,0.002,116590.0,116580.0,0.31812301]
[1754679092289,0.002,116590.0,116580.0,0.68948927]
[1754679092514,0.002,116590.0,116580.0,0.68148927]
[1754679094474,0.00507,116590.0,116580.0,0.68148927]
[1754679095737,0.17859129,116590.0,116580.0,0.68148927]
[1754679095863,0.17859129,116590.0,116580.0,0.31012301]
[1754679096472,0.21439835,116590.0,116580.0,0.31012301]
[1754679097712,0.21439835,116590.0,116580.0,0.68148927]
[1754679098006,0.17859129,116590.0,116580.0,0.68148927]
[1754679098472,0.00705,116590.0,116580.0,0.68148927]
[1754679098776,0.17859129,116590.0,116580.0,0.68148927]
[1754679099515,0.17859129,116590.0,116580.0,0.31012301]
[1754679099725,0.17859129,116590.0,116580.0,0.68148927]
[1754679100185,0.17859129,116590.0,116580.0,0.67348927]
[1754679101023,0.17859129,116590.0,116580.0,0.56868927]
[1754679103191,0.31499129,116590.0,116580.0,0.56868927]
[1754679105098,0.31499129,116590.0,116580.0,0.70496927]
[1754679105570,0.31499129,116590.0,116580.0,0.33360301]
[1754679105740,0.31499129,116590.0,116580.0,0.70496927]
[1754679107279,0.31499129,116590.0,116580.0,0.69696927]
[1754679108075,0.31499129,116590.0,116580.0,0.52541326]
[1754679108273,0.31499129,116590.0,116580.0,0.69696927]
[1754679108478,0.31499129,116590.0,116580.0,0.52541326]
[1754679108681,0.31499129,116590.0,116580.0,0.69696927]
[1754679109489,0.31499129,116590.0,116580.0,0.69660927]
[1754679109895,0.31499129,116590.0,116580.0,0.153687]
[1754679110118,0.31499129,116590.0,116580.0,0.69660927]
[1754679110474,0.31499129,116590.0,116580.0,0.32524301]
[1754679110697,0.14345,116590.0,116580.0,0.69660927]
[1754679110894,0.31499129,116590.0,116580.0,0.69660927]
[1754679111044,0.31499129,116590.0,116580.0,0.32524301]
[1754679111245,0.31499129,116590.0,116580.0,0.69660927]
[1754679114258,0.31499129,116590.0,116580.0,0.68860927]
[1754679114874,0.31499129,116590.0,116580.0,0.31724301]
[1754679115338,0.31499129,116590.0,116580.0,0.68860927]
[1754679116786,0.31499129,116590.0,116580.0,1.05944457]
[1754679117493,0.31499129,116590.0,116580.0,0.92352457]
[1754679119598,0.3343168,116590.0,116580.0,0.18132301]
[1754679119826,0.3343168,116590.0,116580.0,0.55242379]
[1754679120033,0.31499129,116590.0,116580.0,0.55242379]
[1754679120256,0.31499129,116590.0,116580.0,0.38086778]
[1754679120482,0.17155601,116580.0,116570.0,0.55139225]
[1754679120702,0.17360601,116580.0,116570.0,0.57716325]
[1754679120911,0.17653601,116580.0,116570.0,0.54179252]
[1754679121189,0.17653601,116580.0,116570.0,0.71336325]
[1754679121393,0.17653601,116580.0,116570.0,0.70478472]
[1754679121598,0.17753601,116580.0,116570.0,0.67901372]
[1754679122026,0.17753601,116580.0,116570.0,0.68959225]
[1754679122680,0.17753601,116580.0,116570.0,0.68968357]
[1754679125537,0.00598,116580.0,116570.0,0.68968357]
[1754679125745,0.00393,116580.0,116570.0,0.68968357]
[1754679125953,0.17548601,116580.0,116570.0,0.68968357]
[1754679126188,0.00393,116580.0,116570.0,0.68968357]
[1754679126626,0.001,116580.0,116570.0,1.06087567]
[1754679126841,0.001,116580.0,116570.0,1.08519567]
[1754679127051,0.001,116580.0,116570.0,1.11096567]
[1754679127748,0.001,116580.0,116570.0,0.36858147]
[1754679127960,0.001,116580.0,116570.0,1.11096567]
[1754679128613,0.001,116580.0,116570.0,1.56101988]
[1754679128840,0.001,116580.0,116570.0,1.52982778]
[1754679129309,0.001,116580.0,116570.0,1.5472768]
[1754679129737,0.001,116580.0,116570.0,1.5452768]
[1754679129944,0.00795267,116600.0,116590.0,0.17154129]
[1754679130151,0.00795267,116600.0,116590.0,0.68045339]
[1754679130372,0.00795267,116600.0,116590.0,0.30926129]
[1754679130589,0.00795267,116600.0,116590.0,0.68045339]